bitfinex-derivatives/quotes_ETHF0:USTF0_20230701
["timestamp","ask_amount","ask_price","bid_price","bid_amount"]
[1688213361751,5.1688917,1925.9,1925.8,8.9071956]
[1688213362156,0.1671917,1925.9,1925.8,8.9071956]
[1688213362352,0.21890636,1925.9,1925.8,8.9071956]
[1688213368865,0.21890636,1925.9,1925.8,13.9071956]
[1688213375271,0.6905671,1925.9,1925.8,8.60347925]
[1688213375566,0.21890636,1925.9,1925.8,8.8901956]
[1688213375863,5.17420636,1925.9,1925.8,8.8901956]
[1688213376766,0.21890636,1925.9,1925.8,8.8901956]
[1688213376967,0.21890636,1925.9,1925.8,13.8901956]
[1688213377663,0.21890636,1925.9,1925.8,19.0841956]
[1688213377854,0.00517503,1926.3,1926.2,5.31153]
[1688213378069,0.00517503,1926.3,1926.2,14.05553047]
[1688213378666,0.00874387,1926.3,1926.2,14.05553047]
[1688213385571,0.2530082,1926.3,1926.2,14.05553047]
[1688213387779,5.3170082,1926.3,1926.2,14.05553047]
[1688213389676,5.3170082,1926.3,1926.2,14.4621798]
[1688213390679,5.47708894,1926.3,1926.2,14.4621798]
[1688213391586,5.47708894,1926.3,1926.2,10.40017933]
[1688213391587,5.78857894,1926.3,1926.2,10.40017933]
[1688213391973,5.78857894,1926.3,1926.2,11.93305038]
[1688213392178,5.78857894,1926.3,1926.2,13.60797933]
[1688213393484,5.78857894,1926.3,1926.2,13.89469568]
[1688213393786,5.47708894,1926.3,1926.2,13.89469568]
[1688213394189,5.3170082,1926.3,1926.2,13.89469568]
[1688213400791,5.6284982,1926.3,1926.2,13.89469568]
[1688213400989,5.3170082,1926.3,1926.2,13.89469568]
[1688213406094,5.07274387,1926.3,1926.2,13.89469568]
[1688213410699,5.23117502,1926.3,1926.2,13.89469568]
[1688213430710,5.39125576,1926.3,1926.2,13.89469568]
[1688213431016,5.23117502,1926.3,1926.2,13.89469568]
[1688213432615,5.2332586,1926.3,1926.2,13.89469568]
[1688213433407,5.39333934,1926.3,1926.2,13.89469568]
[1688213434615,5.2332586,1926.3,1926.2,13.89469568]
[1688213435412,5.39333934,1926.3,1926.2,13.89469568]
[1688213436113,5.2332586,1926.3,1926.2,13.89469568]
[1688213441019,5.65003806,1926.3,1926.2,13.89469568]
[1688213441621,5.48995732,1926.3,1926.2,13.89469568]
[1688213442517,5.96152806,1926.3,1926.2,13.60797933]
[1688213446722,5.96152806,1926.3,1926.2,13.89469568]
[1688213447519,5.80144732,1926.3,1926.2,13.89469568]
[1688213448327,5.96152806,1926.3,1926.2,13.89469568]
[1688213449117,5.48995732,1926.3,1926.2,13.89469568]
[1688213452230,5.80144732,1926.3,1926.2,13.89469568]
[1688213452422,5.96152806,1926.3,1926.2,13.89469568]
[1688213455533,5.80144732,1926.3,1926.2,13.89469568]
[1688213456424,5.96152806,1926.3,1926.2,13.89469568]
[1688213457433,5.80144732,1926.3,1926.2,13.89469568]
[1688213458131,5.96152806,1926.3,1926.2,13.89469568]
[1688213458633,5.96152806,1926.3,1926.2,13.60797933]
[1688213459436,5.96152806,1926.3,1926.2,13.89469568]
[1688213460227,5.80144732,1926.3,1926.2,13.89469568]
[1688213461434,5.96152806,1926.3,1926.2,13.89469568]
[1688213461736,5.80144732,1926.3,1926.2,13.89469568]
[1688213463337,5.96152806,1926.3,1926.2,13.89469568]
[1688213464134,5.80144732,1926.3,1926.2,13.89469568]
[1688213465131,5.96152806,1926.3,1926.2,13.89469568]
[1688213465323,5.80144732,1926.3,1926.2,13.89469568]
[1688213466031,5.80144732,1926.3,1926.2,10.68689568]
[1688213466833,5.96152806,1926.3,1926.2,10.68689568]
[1688213467524,5.80144732,1926.3,1926.2,10.68689568]
[1688213469236,5.48995732,1926.3,1926.2,10.68689568]
[1688213469438,0.42595732,1926.3,1926.2,13.89469568]
[1688213479036,5.2085,1926.6,1926.5,5.0]
[1688213479241,5.2085,1926.6,1926.5,14.05546047]
[1688213479637,5.21357472,1926.6,1926.5,14.05546047]
[1688213480338,0.00507472,1926.6,1926.5,14.05546047]
[1688213480748,10.64803,1926.7,1926.5,14.05546047]
[1688213480940,10.3366,1926.7,1926.6,4.99345]
[1688213481744,10.34168725,1926.7,1926.6,4.99345]
[1688213482046,10.34168725,1926.7,1926.6,9.65445]
[1688213482648,5.27148725,1926.7,1926.6,9.65445]
[1688213482850,0.00508725,1926.7,1926.6,9.65445]
[1688213483239,0.00508725,1926.7,1926.6,14.67385]
[1688213483552,0.41533,1927.3,1927.2,5.0]
[1688213483748,5.22173,1927.3,1927.2,9.97635]
[1688213483943,5.22173,1927.3,1927.2,4.97635]
[1688213484148,5.22173,1927.3,1927.2,5.26306635]
[1688213484346,5.62663009,1927.3,1927.2,5.26306635]
[1688213485953,5.22173,1927.3,1927.2,5.26306635]
[1688213486754,5.74053317,1927.3,1927.2,5.26306635]
[1688213486950,5.74053317,1927.3,1927.2,10.26306635]
[1688213487751,5.42920317,1927.3,1927.2,10.26306635]
[1688213494566,0.42502559,1927.5,1927.4,5.0]
[1688213494867,0.56523,1928.0,1927.6,5.0]
[1688213495168,0.15,1928.0,1927.9,9.682]
[1688213495356,0.93369,1928.2,1927.9,5.27995635]
[1688213495671,4.24549,1928.2,1928.1,4.682]
[1688213495966,4.24549,1928.2,1927.6,0.77818]
[1688213495967,0.31127,1927.7,1927.5,0.7859815]
[1688213496163,8.17708,1927.6,1927.5,0.7859815]
[1688213496364,0.104,1927.5,1927.3,4.682]
[1688213496566,0.104,1927.5,1927.3,4.99333]
[1688213496567,0.47140074,1927.4,1927.3,4.99333]
[1688213496868,3.78320074,1927.4,1927.3,4.682]
[1688213497567,8.46520074,1927.4,1927.2,0.00778271]
[1688213497769,4.784,1927.3,1927.2,0.00778271]
[1688213497974,4.784,1927.3,1926.9,4.9934]
[1688213497975,5.09533,1927.3,1926.9,4.9934]
[1688213498174,7.8898,1927.1,1926.9,4.9934]
[1688213498374,0.47146074,1927.0,1926.9,4.9934]
[1688213499172,0.47146074,1927.0,1926.9,4.682]
[1688213499567,0.47146074,1927.0,1926.9,5.09568205]
[1688213499872,0.47146074,1927.0,1926.9,5.40708205]
[1688213500277,0.31138,1927.0,1926.9,5.6937984]
[1688213500767,0.31559084,1927.0,1926.9,5.6937984]
[1688213501164,0.47567158,1927.0,1926.9,5.6937984]
[1688213501368,0.47567158,1927.0,1926.9,5.40708205]
[1688213502069,0.47567158,1927.0,1926.9,5.6937984]
[1688213502364,0.47567158,1927.0,1926.9,5.40708205]
[1688213502774,0.31559084,1927.0,1926.9,1.0117984]
[1688213502972,0.31559084,1927.0,1926.9,5.6937984]
[1688213503273,0.00421084,1927.0,1926.9,8.9015984]
[1688213503574,0.08554913,1927.0,1926.9,8.9015984]
[1688213503774,0.00421084,1927.0,1926.9,8.9015984]
[1688213503965,0.12371177,1927.0,1926.9,8.9015984]
[1688213507674,0.31136,1927.2,1926.9,8.9015984]
[1688213507872,0.31136,1927.2,1927.1,12.5508]
[1688213508075,0.47144074,1927.2,1927.1,8.20116]
[1688213508370,0.47144074,1927.2,1927.1,4.99336]
[1688213508877,0.47564738,1927.2,1927.1,4.99336]
[1688213509267,0.47564738,1927.2,1927.1,4.97636]
[1688213509674,0.31556664,1927.2,1927.1,5.26307635]
[1688213509985,0.47564738,1927.2,1927.1,5.26307635]
[1688213510173,0.31556664,1927.2,1927.1,5.84756047]
[1688213510373,0.31556664,1927.2,1927.1,9.05536047]
[1688213511584,0.31556664,1927.2,1927.1,13.90966047]
[1688213513472,0.47564738,1927.2,1927.1,13.90966047]
[1688213513677,0.31556664,1927.2,1927.1,13.90966047]
[1688213515375,0.47564738,1927.2,1927.1,13.90966047]
[1688213515877,0.47564738,1927.2,1927.1,10.70186047]
[1688213516082,0.47564738,1927.2,1927.1,10.41514412]
[1688213516679,0.47564738,1927.2,1927.1,10.70186047]
[1688213516880,0.31556664,1927.2,1927.1,10.70186047]
[1688213519591,0.47564738,1927.2,1927.1,10.70186047]
[1688213519791,0.31556664,1927.2,1927.1,10.70186047]
[1688213521390,0.00420664,1927.2,1927.1,13.90966047]
[1688213521591,0.00420664,1927.2,1927.1,18.57866047]
[1688213522193,0.12519893,1927.2,1927.1,18.57866047]
[1688213522495,0.12519893,1927.2,1927.1,18.99189293]
[1688213522695,0.43653893,1927.2,1927.1,18.99189293]
[1688213523795,0.59661967,1927.2,1927.1,18.99189293]
[1688213524393,0.59661967,1927.2,1927.1,15.78409293]
[1688213524786,0.59661967,1927.2,1927.1,15.49737658]
[1688213524988,0.59661967,1927.2,1927.1,14.92989246]
[1688213526293,0.43653893,1927.2,1927.1,15.21660881]
[1688213526498,0.43653893,1927.2,1927.1,18.42440881]
[1688213527096,0.12519893,1927.2,1927.1,18.42440881]
[1688213529192,0.12519893,1927.2,1927.1,13.74240881]
[1688213531302,0.12519893,1927.2,1927.1,18.40340881]
[1688213531997,0.43653893,1927.2,1927.1,18.40340881]
[1688213532205,0.43653893,1927.2,1927.1,13.73440881]
[1688213532802,0.59661967,1927.2,1927.1,5.67230881]
[1688213532999,0.70061967,1927.2,1927.1,5.38559246]
[1688213533697,5.38261967,1927.2,1927.1,0.41323246]
[1688213534099,0.104,1927.1,1927.0,0.31137]
[1688213534299,8.30516,1927.1,1927.0,0.31137]
[1688213534796,8.30923371,1927.1,1927.0,0.31137]
[1688213535306,5.10143371,1927.1,1927.0,0.31137]
[1688213535802,4.99743371,1927.1,1927.0,0.31137]
[1688213537306,4.99743371,1927.1,1926.9,5.46046]
[1688213537505,0.47146074,1927.0,1926.9,5.46046]
[1688213538299,0.47146074,1927.0,1926.9,5.88020253]
[1688213538805,0.47550057,1927.0,1926.9,5.88020253]
[1688213539104,0.31541983,1927.0,1926.9,6.16691888]
[1688213541108,0.47550057,1927.0,1926.9,6.16691888]
[1688213541704,0.31541983,1927.0,1926.9,6.16691888]
[1688213542605,0.47550057,1927.0,1926.9,5.88020253]
[1688213543806,0.31541983,1927.0,1926.9,6.16691888]
[1688213544409,0.47550057,1927.0,1926.9,6.16691888]
[1688213545005,0.31541983,1927.0,1926.9,6.16691888]
[1688213545299,0.47550057,1927.0,1926.9,6.16691888]
[1688213547501,0.47550057,1927.0,1926.9,5.88020253]
[1688213549114,0.47550057,1927.0,1926.9,5.41313253]
[1688213550714,0.47550057,1927.0,1926.9,5.69984888]
[1688213551315,0.00403983,1927.0,1926.9,5.69984888]
[1688213551919,0.31541983,1927.0,1926.9,5.69984888]
[1688213552305,0.31541983,1927.0,1926.9,8.90764888]
[1688213553917,0.61927967,1927.1,1926.9,8.90764888]
[1688213554121,0.31137,1927.2,1927.0,4.682]
[1688213554316,0.31137,1927.2,1927.1,5.28007635]
[1688213554511,0.77836,1927.3,1927.1,5.84756047]
[1688213554727,0.00372709,1927.2,1927.1,13.88596047]
[1688213568731,0.00372709,1927.2,1927.1,14.30547061]
[1688213568930,0.00372709,1927.2,1927.1,15.88439448]
[1688213571031,0.31506709,1927.2,1927.1,15.88439448]
[1688213571328,0.47514783,1927.2,1927.1,6.99179401]
[1688213571535,0.47514783,1927.2,1927.1,5.41287014]
[1688213572036,0.57914783,1927.2,1927.1,5.10151014]
[1688213572927,0.57914783,1927.2,1927.1,5.41287014]
[1688213581745,0.57914783,1927.2,1927.1,5.10151014]
[1688213581943,13.10994783,1927.2,1927.1,0.41951014]
[1688213582139,13.10994783,1927.2,1926.8,0.78629432]
[1688213582346,4.99339,1926.9,1926.8,0.78629432]
[1688213582655,5.15347074,1926.9,1926.8,0.78629432]
[1688213582848,5.15716599,1926.9,1926.8,0.78629432]
[1688213583051,5.15716599,1926.9,1926.8,1.21145961]
[1688213583748,5.26116599,1926.9,1926.8,0.43294961]
[1688213583953,5.26116599,1926.9,1926.8,0.74435961]
[1688213584248,5.26116599,1926.9,1926.8,0.43294961]
[1688213585144,0.31142,1926.7,1926.6,0.31144]
[1688213585349,5.15350074,1926.7,1926.6,0.31144]
[1688213585549,5.15350074,1926.7,1926.6,0.50000634]
[1688213588554,5.15350074,1926.7,1926.6,0.18856634]
[1688213588948,5.15350074,1926.7,1926.6,0.50000634]
[1688213592654,4.682,1926.7,1926.6,0.50000634]
[1688213592947,0.31141,1926.8,1926.6,5.3670119]
[1688213593357,0.31141,1926.8,1926.7,4.08670412]
[1688213593649,0.31141,1926.8,1926.7,6.20444276]
[1688213593855,0.31509621,1926.8,1926.7,6.20444276]
[1688213594350,0.47517695,1926.8,1926.7,0.08013864]
[1688213594554,5.15517695,1926.8,1926.7,0.08013864]
[1688213594756,5.15517695,1926.8,1926.6,0.31143]
[1688213595054,8.36297695,1926.8,1926.7,0.16636039]
[1688213595255,8.36297695,1926.8,1926.5,16.08003471]
[1688213595452,8.36297695,1926.8,1926.6,0.15777598]
[1688213595658,8.36297695,1926.8,1926.6,0.46921598]
[1688213596661,8.46697695,1926.8,1926.6,0.15777598]
[1688213596855,8.46697695,1926.8,1926.6,0.46921598]
[1688213597554,4.658,1926.7,1926.6,0.46921598]
[1688213597750,4.97309716,1926.7,1926.6,0.46921598]
[1688213606460,4.97309716,1926.7,1926.6,0.15777598]
[1688213606762,9.65509716,1926.7,1926.5,0.43326471]
[1688213606962,8.04988074,1926.6,1926.5,0.00778553]
[1688213607163,8.36132074,1926.6,1926.5,0.00778553]
[1688213607559,8.36132074,1926.6,1926.5,0.13309349]
[1688213607759,8.36498885,1926.6,1926.5,0.13309349]
[1688213607961,8.36498885,1926.6,1926.5,0.00778553]
[1688213608764,8.36498885,1926.6,1926.5,0.13307386]
[1688213610962,8.36498885,1926.6,1926.5,0.26706519]
[1688213623879,4.99710811,1926.6,1926.5,0.55378154]
[1688213624284,5.15718885,1926.6,1926.5,0.55378154]
[1688213624577,5.15718885,1926.6,1926.5,0.26706519]
[1688213624876,5.15718885,1926.6,1926.5,5.17986519]
[1688213627981,5.15718885,1926.6,1926.5,5.46658154]
[1688213628977,5.15718885,1926.6,1926.5,5.17986519]
[1688213629580,5.15718885,1926.6,1926.5,5.46658154]
[1688213631482,4.99710811,1926.6,1926.5,5.46658154]
[1688213632084,4.99710811,1926.6,1926.5,5.77804154]
[1688213632280,4.99710811,1926.6,1926.5,5.46658154]
[1688213632474,5.15718885,1926.6,1926.5,5.17986519]
[1688213636289,8.36498885,1926.6,1926.5,5.17986519]
[1688213643297,4.99710811,1926.6,1926.5,5.46658154]
[1688213644300,5.15718885,1926.6,1926.5,5.46658154]
[1688213644997,4.99710811,1926.6,1926.5,5.77804154]
[1688213646996,5.15718885,1926.6,1926.5,5.77804154]
[1688213647803,4.99710811,1926.6,1926.5,5.77804154]
[1688213648095,5.15718885,1926.6,1926.5,5.77804154]
[1688213648304,5.15718885,1926.6,1926.5,5.49132519]
[1688213649101,5.15718885,1926.6,1926.5,5.17986519]
[1688213649498,8.36498885,1926.6,1926.5,5.17986519]
[1688213650099,5.15718885,1926.6,1926.5,5.17986519]
[1688213650807,8.36498885,1926.6,1926.5,5.17986519]
[1688213651801,8.36498885,1926.6,1926.5,5.77804154]
[1688213652602,8.36498885,1926.6,1926.5,5.49132519]
[1688213654197,8.36498885,1926.6,1926.5,5.77804154]
[1688213655404,8.20490811,1926.6,1926.5,5.77804154]
[1688213657011,8.36498885,1926.6,1926.5,5.77804154]
[1688213657509,4.99710811,1926.6,1926.5,5.77804154]
[1688213659808,5.15718885,1926.6,1926.5,5.77804154]
[1688213660811,4.99710811,1926.6,1926.5,5.77804154]
[1688213661212,5.15718885,1926.6,1926.5,0.26706519]
[1688213661514,6.09173949,1926.6,1926.3,0.31149]
[1688213661715,4.68,1926.4,1926.3,10.29829]
[1688213662013,5.15155074,1926.4,1926.3,10.29829]
[1688213662201,5.15155074,1926.4,1926.3,10.58500635]
[1688213662712,4.99147,1926.4,1926.3,10.58500635]
[1688213662908,4.99512001,1926.4,1926.3,10.58500635]
[1688213663615,5.15520075,1926.4,1926.3,10.29829]
[1688213664308,5.15520075,1926.4,1926.3,10.58500635]
[1688213665409,4.99512001,1926.4,1926.3,10.58500635]
[1688213665810,5.15520075,1926.4,1926.3,10.58500635]
[1688213667615,4.99512001,1926.4,1926.3,10.58500635]
[1688213669107,4.99512001,1926.4,1926.3,10.78450879]
[1688213671914,5.15520075,1926.4,1926.3,10.78450879]
[1688213672220,5.15520075,1926.4,1926.3,10.49779244]
[1688213673815,5.15520075,1926.4,1926.3,5.06670244]
[1688213676123,5.15520075,1926.4,1926.3,5.37819244]
[1688213676619,5.15520075,1926.4,1926.3,5.66490879]
[1688213677514,5.15520075,1926.4,1926.3,5.37819244]
[1688213681021,4.99512001,1926.4,1926.3,5.66490879]
[1688213681218,0.31512001,1926.4,1926.3,10.34690879]
[1688213682116,0.31512001,1926.4,1926.3,10.32990879]
[1688213697428,0.47520075,1926.4,1926.3,4.86450244]
[1688213697629,5.15720075,1926.4,1926.3,0.19950244]
[1688213698228,5.15720075,1926.4,1926.3,0.51099244]
[1688213700330,4.99712001,1926.4,1926.3,0.79770879]
[1688213700539,0.31512001,1926.4,1926.3,5.47970879]
[1688213700741,0.31512001,1926.4,1926.3,10.37800879]
[1688213705240,0.31512001,1926.4,1926.3,0.51099244]
[1688213705241,0.47520075,1926.4,1926.3,0.51099244]
[1688213705737,0.31512001,1926.4,1926.3,0.79770879]
[1688213706240,0.47520075,1926.4,1926.3,0.79770879]
[1688213707040,0.31512001,1926.4,1926.3,0.79770879]
[1688213707245,0.31512001,1926.4,1926.3,5.47970879]
[1688213711444,0.00365001,1926.4,1926.3,5.47970879]
[1688213711741,0.00365001,1926.4,1926.3,8.68750879]
[1688213711947,0.00365001,1926.4,1926.3,8.48800635]
[1688213712945,0.77861,1926.7,1926.3,8.48800635]
[1688213713248,0.77861,1926.7,1926.6,4.97644]
[1688213713547,0.77861,1926.7,1926.6,5.26315635]
[1688213713941,0.78228716,1926.7,1926.6,5.26315635]
[1688213714139,0.00367716,1926.7,1926.6,5.26315635]
[1688213714336,0.00367716,1926.7,1926.6,5.83064047]
[1688213714550,0.31509716,1926.7,1926.6,5.83064047]
[1688213715648,0.31509716,1926.7,1926.6,5.26315635]
[1688213720845,8.3409779,1926.7,1926.5,0.77861]
[1688213721055,4.99344,1926.6,1926.5,0.77861]
[1688213721944,4.99710811,1926.6,1926.5,0.77861]
[1688213723343,4.99710811,1926.6,1926.5,1.06532635]
[1688213727551,4.99710811,1926.6,1926.5,5.88182635]
[1688213730449,0.31510811,1926.6,1926.5,10.56382635]
[1688213730642,0.31510811,1926.6,1926.5,13.77162635]
[1688213730947,0.31515811,1926.6,1926.5,13.77162635]
[1688213732354,0.31515811,1926.6,1926.5,13.88692799]
[1688213732555,0.31513811,1926.6,1926.5,13.88692799]
[1688213733452,0.31513811,1926.6,1926.5,10.67912799]
[1688213740359,0.00366811,1926.6,1926.5,10.67912799]
[1688213740561,0.31513811,1926.6,1926.5,10.67912799]
[1688213743960,3.68301885,1926.6,1926.5,4.79730164]
[1688213744160,3.68301885,1926.6,1926.5,0.42678164]
[1688213744161,8.36301885,1926.6,1926.5,0.42678164]
[1688213744461,8.36301885,1926.6,1926.5,0.11530164]
[1688213745265,8.36301885,1926.6,1926.5,0.42678164]
[1688213749064,5.15521885,1926.6,1926.5,0.71349799]
[1688213749363,4.99513811,1926.6,1926.5,0.71349799]
[1688213750263,5.15521885,1926.6,1926.5,0.42678164]
[1688213750658,5.15521885,1926.6,1926.5,0.71349799]
[1688213751257,8.36301885,1926.6,1926.5,0.71349799]
[1688213751866,8.36301885,1926.6,1926.5,0.42678164]
[1688213755276,8.36301885,1926.6,1926.5,0.11530164]
[1688213755575,9.29753914,1926.6,1926.5,0.07923726]
[1688213755780,9.29753914,1926.6,1926.2,0.00778675]
[1688213755781,15.40128152,1926.6,1926.2,0.00778675]
[1688213755976,8.17733,1926.3,1926.2,0.00778675]
[1688213756186,8.33741074,1926.3,1926.2,0.00778675]
[1688213756976,8.34218338,1926.3,1926.2,0.00778675]
[1688213757486,9.38094173,1926.3,1926.0,0.77884]
[1688213757682,7.8898,1926.1,1926.0,0.77884]
[1688213757892,8.36144074,1926.1,1926.0,0.72591023]
[1688213758883,8.36619543,1926.1,1926.0,0.72591023]
[1688213760487,8.36619543,1926.1,1926.0,0.41433023]
[1688213760880,8.36619543,1926.1,1925.9,0.00778796]
[1688213761080,4.682,1926.0,1925.9,0.00778796]
[1688213761289,0.31157,1926.0,1925.9,0.31936796]
[1688213761486,9.52155469,1926.1,1925.9,1.02975722]
[1688213761687,4.99831469,1926.1,1925.9,1.02975722]
[1688213762093,0.31631469,1926.1,1926.0,4.682]
[1688213762389,0.00475469,1926.1,1926.0,4.99357]
[1688213762590,0.00475469,1926.1,1926.0,9.91157]
[1688213762791,0.31155,1926.1,1926.0,9.91157]
[1688213763092,0.31155,1926.1,1926.0,10.62473299]
[1688213763792,0.31630469,1926.1,1926.0,10.62473299]
[1688213764584,0.00475469,1926.1,1926.0,10.62473299]
[1688213764792,5.00129715,1926.4,1926.0,10.62473299]
[1688213765093,5.00129715,1926.4,1926.2,4.682]
[1688213765289,5.00129715,1926.4,1926.3,1.16573047]
[1688213765487,5.00129715,1926.4,1926.3,6.43147207]
[1688213765989,5.16617234,1926.4,1926.3,6.14475572]
[1688213766294,5.16617234,1926.4,1926.3,6.43147207]
[1688213766491,5.0060916,1926.4,1926.3,6.43147207]
[1688213767997,5.16617234,1926.4,1926.3,5.5772716]
[1688213768197,0.3240916,1926.4,1926.3,5.86398795]
[1688213768498,5.0060916,1926.4,1926.3,5.86398795]
[1688213768693,5.16617234,1926.4,1926.3,5.5772716]
[1688213768895,5.16617234,1926.4,1926.3,5.86398795]
[1688213769095,5.16617234,1926.4,1926.3,5.5772716]
[1688213770001,5.27017234,1926.4,1926.3,0.3748716]
[1688213770295,8.37397234,1926.4,1926.3,0.3748716]
[1688213770495,5.16617234,1926.4,1926.3,0.3748716]
[1688213770898,5.16617234,1926.4,1926.3,0.78083628]
[1688213771094,5.16617234,1926.4,1926.3,0.3748716]
[1688213771995,5.0060916,1926.4,1926.3,0.66158795]
[1688213773103,5.16617234,1926.4,1926.3,0.66158795]
[1688213773798,5.0060916,1926.4,1926.3,0.66158795]
[1688213774002,5.16617234,1926.4,1926.3,0.66158795]
[1688213775400,5.0060916,1926.4,1926.3,0.66158795]
[1688213775601,5.16617234,1926.4,1926.3,0.66158795]
[1688213776399,5.0060916,1926.4,1926.3,0.66158795]
[1688213776798,4.6945816,1926.4,1926.3,0.66158795]
[1688213776996,5.0060916,1926.4,1926.3,0.66158795]
[1688213777196,4.6945816,1926.4,1926.3,0.66158795]
[1688213777603,5.16617234,1926.4,1926.3,0.66158795]
[1688213778809,5.0060916,1926.4,1926.3,0.66158795]
[1688213779018,4.6945816,1926.4,1926.3,0.66158795]
[1688213781108,4.85466234,1926.4,1926.3,0.66158795]
[1688213781409,4.6945816,1926.4,1926.3,0.66158795]
[1688213782809,5.16617234,1926.4,1926.3,0.66158795]
[1688213783018,5.16617234,1926.4,1926.3,0.3748716]
[1688213783315,8.37397234,1926.4,1926.3,0.3748716]
[1688213785906,5.16617234,1926.4,1926.3,0.3748716]
[1688213786112,8.37397234,1926.4,1926.3,0.3748716]
[1688213788216,0.48417234,1926.4,1926.3,0.66158795]
[1688213788511,4.6705816,1926.4,1926.3,0.66158795]
[1688213788906,4.83066234,1926.4,1926.3,0.66158795]
[1688213789508,4.6705816,1926.4,1926.3,0.66158795]
[1688213789706,4.9820916,1926.4,1926.3,0.66158795]
[1688213789906,5.14217234,1926.4,1926.3,0.3748716]
[1688213791911,8.34997234,1926.4,1926.3,0.3748716]
[1688213810331,0.0125816,1926.4,1926.3,5.34358795]
[1688213810531,0.0125816,1926.4,1926.3,0.66158795]
[1688213810532,4.6945816,1926.4,1926.3,0.66158795]
[1688213810826,4.6945816,1926.4,1926.3,0.59824635]
[1688213811730,4.682,1926.6,1926.3,5.26324635]
[1688213811930,4.682,1926.6,1926.5,0.3115]
[1688213812126,0.16008074,1926.6,1926.5,0.3115]
[1688213812329,0.47157074,1926.6,1926.5,0.3115]
[1688213815133,0.47157074,1926.6,1926.5,5.1353]
[1688213815726,0.47157074,1926.6,1926.5,5.42201635]
[1688213816130,0.31149,1926.6,1926.5,5.42201635]
[1688213817931,0.47157074,1926.6,1926.5,5.42201635]
[1688213818237,0.31149,1926.6,1926.5,5.42201635]
[1688213819034,0.94237127,1926.7,1926.5,5.42201635]
[1688213819230,0.00778594,1926.7,1926.6,5.56097412]
[1688213819938,0.01246269,1926.7,1926.6,5.56097412]
[1688213820143,4.69446269,1926.7,1926.6,0.87897412]
[1688213822030,0.01246269,1926.7,1926.6,5.56097412]
[1688213825132,0.06757736,1926.7,1926.6,10.22397412]
[1688213825338,5.92582181,1927.1,1926.6,10.22397412]
[1688213825642,0.15313998,1927.0,1926.9,4.682]
[1688213825841,0.1576576,1927.0,1926.9,6.02804412]
[1688213826340,0.1576576,1927.0,1926.9,6.31476047]
[1688213826544,0.1576576,1927.0,1926.9,11.33846047]
[1688213826742,0.4690676,1927.0,1926.9,11.33846047]
[1688213826947,0.1576576,1927.0,1926.9,11.33846047]
[1688213827833,0.4690676,1927.0,1926.9,11.33846047]
[1688213828741,0.1576576,1927.0,1926.9,11.33846047]
[1688213830038,0.4690776,1927.0,1926.9,11.33846047]
[1688213833947,0.1576576,1927.0,1926.9,11.33846047]
[1688213834248,0.4690776,1927.0,1926.9,11.33846047]
[1688213835049,0.4690776,1927.0,1926.9,6.65646047]
[1688213835449,8.51695834,1927.0,1926.9,0.77856]
[1688213836941,8.51695834,1927.0,1926.9,1.19162802]
[1688213839156,3.6768776,1927.0,1926.9,1.47834437]
[1688213839351,8.3588776,1927.0,1926.9,1.47834437]
[1688213840245,8.51895834,1927.0,1926.9,1.47834437]
[1688213840450,8.3588776,1927.0,1926.9,1.47834437]
[1688213840757,8.51895834,1927.0,1926.9,1.19162802]
[1688213848955,8.51895834,1927.0,1926.9,1.47834437]
[1688213849353,8.0474576,1927.0,1926.9,1.47834437]
[1688213849965,8.51895834,1927.0,1926.9,1.47834437]
[1688213850154,8.51895834,1927.0,1926.9,1.19162802]
[1688213854876,9.45345683,1927.0,1926.9,1.19162802]
[1688213855071,8.51895834,1927.0,1926.9,1.19162802]
[1688213855273,8.3588776,1927.0,1926.9,1.47834437]
[1688213855466,8.51895834,1927.0,1926.9,1.47834437]
[1688213855666,8.51895834,1927.0,1926.9,1.19162802]
[1688213856272,9.45342897,1927.0,1926.9,1.19162802]
[1688213856869,0.1576576,1927.0,1926.9,6.16034437]
[1688213857772,4.8156576,1927.0,1926.9,1.47834437]
[1688213858872,4.90372057,1927.0,1926.9,1.47834437]
[1688213860574,5.06380131,1927.0,1926.9,1.47834437]
[1688213860874,5.37521131,1927.0,1926.9,1.47834437]
[1688213861572,4.90372057,1927.0,1926.9,1.47834437]
[1688213861968,5.06380131,1927.0,1926.9,1.47834437]
[1688213862172,4.90372057,1927.0,1926.9,1.47834437]
[1688213864881,5.06380131,1927.0,1926.9,1.47834437]
[1688213865375,4.90372057,1927.0,1926.9,1.47834437]
[1688213865773,0.24572057,1927.0,1926.9,6.14334437]
[1688213866078,4.68,1927.2,1926.9,6.14334437]
[1688213866377,4.68,1927.2,1927.0,10.94828412]
[1688213866582,4.68,1927.2,1927.1,0.59812635]
[1688213866973,18.34079866,1927.5,1927.2,0.56748412]
[1688213867179,5.44948178,1927.5,1927.3,5.26308635]
[1688213867477,10.13148178,1927.7,1927.5,0.31134]
[1688213867669,10.60287252,1927.7,1927.5,0.59805635]
[1688213868073,5.44948178,1927.7,1927.5,0.59805635]
[1688213868273,3.21556037,1927.8,1927.6,0.87880412]
[1688213868274,8.97633215,1927.8,1927.6,0.87880412]
[1688213868578,4.682,1927.7,1927.6,6.12160412]
[1688213868972,4.682,1927.7,1927.6,11.07180412]
[1688213870981,5.15339074,1927.7,1927.6,0.31132]
[1688213871574,4.99331,1927.7,1927.6,0.31132]
[1688213872078,5.15339074,1927.7,1927.6,0.31132]
[1688213874085,5.15740728,1927.7,1927.6,0.31132]
[1688213874288,5.15540728,1927.7,1927.6,0.31132]
[1688213879991,5.15540728,1927.7,1927.6,0.59803635]
[1688213880183,4.99532654,1927.7,1927.6,0.59803635]
[1688213880385,4.68401654,1927.7,1927.6,0.59803635]
[1688213880988,0.00401654,1927.7,1927.6,0.59803635]
[1688213881187,0.00401654,1927.7,1927.6,5.26303635]
[1688213881691,4.68601654,1927.7,1927.6,0.59803635]
[1688213882289,0.00401654,1927.7,1927.6,5.28003635]
[1688213882490,0.19185183,1927.7,1927.6,5.28003635]
[1688213883093,4.87385183,1927.7,1927.6,0.59803635]
[1688213884089,5.34523257,1927.7,1927.6,0.31132]
[1688213884787,8.39295183,1927.7,1927.6,0.59803635]
[1688213884985,8.55303257,1927.7,1927.6,0.59803635]
[1688213885395,5.34523257,1927.7,1927.6,0.31132]
[1688213885695,8.55303257,1927.7,1927.6,0.31132]
[1688213886494,5.34523257,1927.7,1927.6,0.31132]
[1688213886690,8.55303257,1927.7,1927.6,0.59803635]
[1688213886892,5.18515183,1927.7,1927.6,0.59803635]
[1688213888504,5.34523257,1927.7,1927.6,0.59803635]
[1688213888792,5.18515183,1927.7,1927.6,0.59803635]
[1688213889802,5.34523257,1927.7,1927.6,0.59803635]
[1688213890100,5.18515183,1927.7,1927.6,0.59803635]
[1688213892195,0.19185183,1927.7,1927.6,0.59803635]
[1688213895296,0.19185183,1927.7,1927.6,5.28003635]
[1688213903620,0.50315183,1927.7,1927.6,5.28003635]
[1688213911423,0.50315183,1927.7,1927.6,4.99332]